Cogmind - Beta 14 @@@ ROGUE MODE // 2025.03.09 @ 23:46:18 Player: BoomBlip Result: Destroyed by J6-L3E(R) with Subdweller Beam Cannon Performance ------------- Evolutions (0) 0 Regions Visited (2) 400 Robots Destroyed (4) 20 Value Destroyed (135) 135 Prototype IDs (0) 0 Alien Tech Used (0) 0 Bonus (0) 0 TOTAL SCORE: 555 Bonus ------- None Cogmind --------- Core Integrity 0/250 Matter 280/300 Energy 65/125 System Corruption 0% Temperature Warm (149) Movement Treading (160) Location -10/Subcaves Parts ------- > --- POWER (1) -------- Light Ion Engine > --- PROPULSION (2) --- Light Treads Aluminum Leg > --- UTILITY (2) ------ Small Storage Unit > --- WEAPON (2) ------- Medium Laser Medium Laser > --- INVENTORY (8) ---- Light Treads Wheel Wheel Assault Rifle Light Assault Rifle Light Assault Rifle Peak State ------------ > --- POWER ------------ Ion Engine > --- PROPULSION ------- Aluminum Leg Aluminum Leg > --- UTILITY ---------- Small Storage Unit Light Armor Plating > --- WEAPON ----------- Medium Laser Medium Laser > --- INVENTORY -------- Light Ion Engine Light Treads Light Treads Wheel Wheel Assault Rifle Light Assault Rifle Light Assault Rifle [Rating: 7] Favorites ----------- Power Ion Engine Engine Ion Engine Propulsion Aluminum Leg Treads Light Treads Leg Aluminum Leg Utility Small Storage Unit Storage Small Storage Unit Protection Light Armor Plating Weapon Medium Laser Energy Gun Medium Laser Build | -11 -10 -10 ------- Run | Yrd Mat Sub Slots Evolved . | . . . Power . | . . . Propulsion . | . . . Utility . | . . . Weapon . | . . . Parts Attached 3 | . . 3 Power 1 | . . 1 Engine 1 | . . 1 Core . | . . . Reactor . | . . . Propulsion 1 | . . 1 Treads 1 | . . 1 Leg . | . . . Wheel . | . . . Hover . | . . . Flight . | . . . Utility 1 | . . 1 Device . | . . . Storage . | . . . Processor . | . . . Hackware . | . . . Protection 1 | . . 1 Artifact . | . . . Weapon . | . . . Energy Gun . | . . . Energy Cannon . | . . . Ballistic Gun . | . . . Ballistic Cannon . | . . . Launcher . | . . . Special Weapon . | . . . Impact Weapon . | . . . Slashing Weapon . | . . . Piercing Weapon . | . . . Special Melee Weapon . | . . . Unidentified Prototypes . | . . . Parts Lost 3 | . . 3 Power 1 | . . 1 Propulsion 1 | . . 1 Utility 1 | . . 1 Weapon . | . . . Highest Loss Streak 3 | . . 3 To Critical Strikes . | . . . Average Slot Usage (%) 88 | . 85 95 Engine 14 | . 14 14 Leg 27 | . 28 26 Storage 14 | . 14 14 Protection 3 | . . 10 Energy Gun 28 | . 28 28 Peak Build Rating 7 | . 6 7 Average Rating 6 | . 6 6 On Entrance 6 | 6 6 6 Naked Turns . | . . . Heaviest Build 17 | 14 14 17 Greatest Support 20 | 20 20 20 Greatest Overweight (x) . | . . . Average Overweight (x) . | . . . Largest Inventory Capacity 8 | . 8 8 Average Capacity 8 | . 8 8 Most Carried 8 | . 8 8 Average Carried 7 | . 7 7 Final Capacity 8 | 8 8 8 Final Carried 8 | 6 8 6 Class Distribution -------------------- 100% | Mutant Dominant Class ---------------- Mutant | -10/Materials Mutant | -10/Subcaves Resources | -11 -10 -10 ----------- Run | Yrd Mat Sub Matter Collected 210 | 185 . 25 Remotely . | . . . Salvage Created 158 | . . 158 Parts 13 | . . 13 Haulers Intercepted . | . . . Recyclers Shooed . | . . . Parts Field Recycled . | . . . Retrieved Matter . | . . . Parts Self-Destructed 4 | . . 4 Prevented . | . . . Kills | -11 -10 -10 ------- Run | Yrd Mat Sub Combat Hostiles Destroyed 4 | . . 4 Guns 4 | . . 4 Classes Destroyed 3 | . . 3 Swarmer 1 | . . 1 Sentry 1 | . . 1 Subdweller 2 | . . 2 Best Kill Streak 2 | . . 2 Combat Bots Only 2 | . . 2 Max Kills in Single Turn 2 | . . 2 Gunslinging 1 | . . 1 Exploded . | . . . Melee . | . . . Uniques/NPCs Destroyed . | . . . Combat | -11 -10 -10 -------- Run | Yrd Mat Sub Hostile Shots Fired 49 | . . 49 Missed 16 | . . 16 Damage Taken 696 | . . 696 Core 269 | . . 269 Absorbed by Shields . | . . . Core Remaining (%) 100 | 100 . . Volleys Fired 27 | . 2 25 Largest 2 | . 2 2 Hottest 100 | . 100 100 Shots Fired 54 | . 4 50 Gun 54 | . 4 50 Cannon . | . . . Launcher . | . . . Special . | . . . Kinetic . | . . . Thermal 54 | . 4 50 Explosive . | . . . Electromagnetic . | . . . Robot Hit Streak 11 | . 1 11 Robot Miss Streak 5 | . 2 5 Penetration Max . | . . . Secondary Targets 2 | . . 2 Max Gunslinging Chain 1 | . . 1 Shots Hit Robots 42 | . 1 41 Core Hits 10 | . . 10 Critical Kills . | . . . Critical Parts Destroyed . | . . . Critical Strikes 4 | . . 4 Burn 4 | . . 4 Melee Attacks . | . . . Impact . | . . . Slashing . | . . . Piercing . | . . . Sneak Attacks . | . . . Combat Hostiles . | . . . Follow-up Attacks . | . . . Damage Inflicted 421 | . 12 409 Guns 421 | . 12 409 Cannons . | . . . Explosions . | . . . Melee . | . . . Ramming . | . . . Kinetic . | . . . Thermal 421 | . 12 409 Explosive . | . . . Electromagnetic . | . . . Impact . | . . . Slashing . | . . . Piercing . | . . . Highest Corruption . | . . . Average Corruption . | . . . Corruption Purged . | . . . Corruption Blocked . | . . . Overload Shots . | . . . Overflow Damage . | . . . Projectiles . | . . . Explosions . | . . . Melee . | . . . Knockbacks . | . . . Impact . | . . . Kinetic . | . . . Secondary . | . . . Self-Inflicted Damage . | . . . Shots . | . . . Rammed . | . . . Targets Rammed . | . . . Kicked . | . . . Crushed . | . . . Highest Temperature 257 | . 78 257 Average Temperature 89 | . 39 126 Received Heat Transfer 341 | . . 341 Siege Activations . | . . . Robots Corrupted . | . . . Combat Hostiles . | . . . Parts Fried . | . . . Impact Corruptions . | . . . Robots Melted . | . . . Combat Hostiles . | . . . Parts Melted 2 | . . 2 Heat Transferred 1554 | . 37 1517 Parts Sabotaged . | . . . Parts Stolen . | . . . Parts Stripped . | . . . Power Chain Reactions . | . . . Alert | -11 -10 -10 ------- Run | Yrd Mat Sub Peak Influence 15 | . 15 . Initial . | . . . Average 11 | . 11 . Maximum Alert Level . | . . . Low Security (%) 100 | . 100 . Level 1 . | . . . Level 2 . | . . . Level 3 . | . . . Level 4 . | . . . Level 5 . | . . . High Security . | . . . Max Security . | . . . Squads Dispatched . | . . . Investigation . | . . . Extermination . | . . . Reinforcement . | . . . Assault . | . . . Garrison . | . . . Intercept . | . . . Searches Triggered . | . . . Construction Impeded . | . . . Haulers Reinforced . | . . . Active Scanning Responses . | . . . Cargo Convoy Interrupts . | . . . Stealth | -11 -10 -10 --------- Run | Yrd Mat Sub Distress Signals . | . . . Communications Jammed . | . . . Distress Signals . | . . . Times Spotted 7 | . 1 6 Peak Tracking Total 2 | . 1 2 Tactical Retreats . | . . . Traps | -11 -10 -10 ------- Run | Yrd Mat Sub Traps Triggered . | . . . Indirectly . | . . . Trap Hack Attempts . | . . . Triggered . | . . . Disarmed . | . . . Reprogrammed . | . . . Reused . | . . . Traps Extracted . | . . . Installed . | . . . Triggered . | . . . Machines | -11 -10 -10 ---------- Run | Yrd Mat Sub Machines Disabled . | . . . Max in Single Turn . | . . . Machines Repaired . | . . . Machines Dismantled . | . . . Machines Sabotaged . | . . . Overloaded Fab Kills . | . . . Hacking | -11 -10 -10 --------- Run | Yrd Mat Sub Machines Accessed . | . . . Terminals . | . . . Fabricators . | . . . Repair Stations . | . . . Recycling Units . | . . . Scanalyzers . | . . . Garrison Access . | . . . Total Hacks . | . . . Successful . | . . . Failed . | . . . Catastrophic . | . . . Database Lockouts . | . . . Manual . | . . . Terminals . | . . . Fabricators . | . . . Repair Stations . | . . . Recycling Units . | . . . Scanalyzers . | . . . Garrison Access . | . . . Terminal Hacks . | . . . Fabricator Hacks . | . . . Repair Station Hacks . | . . . Recycling Unit Hacks . | . . . Scanalyzer . | . . . Garrison Access Hacks . | . . . Unauthorized Hacks . | . . . Terminals . | . . . Fabricators . | . . . Repair Stations . | . . . Recycling Units . | . . . Scanalyzers . | . . . Garrison Access . | . . . Data Cores Recovered . | . . . Used . | . . . Hacking Detections . | . . . Full Trace Events . | . . . Feedback Events . | . . . Feedback Blocked . | . . . Robot Schematics Acquired . | . . . Robots Built . | . . . Authchips . | . . . Time . | . . . Total Robot Build Rating . | . . . Part Schematics Acquired . | . . . Parts Built . | . . . Authchips . | . . . Time . | . . . Total Part Build Rating . | . . . Parts Repaired . | . . . Time . | . . . Parts Recycled . | . . . Recycled Matter . | . . . Retrieved Matter . | . . . Retrieved Components . | . . . Parts Scanalyzed . | . . . Part Schematics Acquired . | . . . Parts Damaged . | . . . Bothacking | -11 -10 -10 ------------ Run | Yrd Mat Sub Used RIF Installer . | . . . Robots Hacked . | . . . Non-combat . | . . . Combat . | . . . Robot Hacks Applied . | . . . Relay Couplers Released . | . . . Fabnet Peak Effective % . | . . . Robots Rewired . | . . . Allies Hacked . | . . . Hacks Repelled . | . . . Allies | -11 -10 -10 -------- Run | Yrd Mat Sub Total Allies . | . . . Largest Group . | . . . Highest-Rated Group . | . . . Highest-Rated Ally . | . . . Total Orders . | . . . Ally Attacks . | . . . Total Damage . | . . . Kills . | . . . Allies Corrupted . | . . . Allies Melted . | . . . Intel | -11 -10 -10 ------- Run | Yrd Mat Sub Robot Analysis Total . | . . . Derelict Logs Recovered . | . . . Drone Launches . | . . . Drone Recoveries . | . . . Exploration | -11 -10 -10 ------------- Run | Yrd Mat Sub Turns Passed 691 | . 464 227 Spaces Moved 199 | 1 75 123 Core . | . . . Treads . | . . . Legs 199 | 1 75 123 Wheels . | . . . Hover . | . . . Flight . | . . . Fastest Speed 120 | 120 120 120 Average Speed 120 | 120 120 120 Slowest Speed 120 | 120 120 120 Overloaded Moves . | . . . Propulsion Burnouts . | . . . Robots Hopped . | . . . Cave-ins Triggered . | . . . Exploration Rate (%) 10 | 2 20 10 Regions Visited 2 Branch Regions 1 Pre-discovered Areas . | . . . Known Exits Taken . | . . . Unknown Exits Taken 2 | 1 1 . Scrap Searched . | . . . Spaces Dug . | . . . Terrain Destroyed . | . . . Melee . | . . . Projectile . | . . . AOE . | . . . Terrain Rammed . | . . . Walls Destroyed . | . . . Machines Disabled . | . . . Actions | -11 -10 -10 --------- Run | Yrd Mat Sub Total 598 | . 445 153 Wait 367 | . 367 . Move 197 | . 74 123 Hop . | . . . Pick Up 2 | . 2 . Fast Attach 1 | . . 1 Attach 2 | . . 2 Detach . | . . . Swap . | . . . Drop . | . . . Fire 27 | . 2 25 Melee . | . . . Ram . | . . . Kick . | . . . Crush . | . . . Escape Stasis . | . . . Rewire 2 | . . 2 Trap . | . . . Miscellaneous . | . . . Route ------- -11/Scrapyard -10/Materials (discovered 3 exits: [*Mat] / [*Min] / [*Sub]) -10/Subcaves History --------- Turn | Location | Event 1 | -11/Scrapyard | Discovered new exit (range 0) 1 | -11/Scrapyard | Entered Materials 5 | -10/Materials | Discovered new exit (range 15) 57 | -10/Materials | Discovered new exit (range 10) 305 | -10/Materials | Build established: Mutant 446 | -10/Materials | Discovered new exit (range 6) 465 | -10/Materials | Entered Subcaves 673 | -10/Subcaves | Core integrity fell below 50% 689 | -10/Subcaves | Core integrity fell below 20% 692 | -10/Subcaves | Destroyed by J6-L3E(R) with Subdweller Beam Cannon Last Messages --------------- 00624_ SA-55X(R) affixes Scrap Shield Fragment to Scrap Shield. 00627_ SA-55X(R) suffers critical hit (Burn). 00630_ Subatomizers dissect the Sub. Monowheel. 00632_ SA-55X(R) affixes Scrap Shield Fragment to Scrap Shield. 00636_ Sub. Optics melted. 00636_ SA-55X(R) destroyed. 00641_ NJ-F6T(O) collects matter. 00643_ Subatomizers dissect the Sub. Monowheel. 00655_ Lgt. Armor Plating destroyed. 00669_ NJ-F6T(O) collects matter. 00670_ Subatomizers dissect the Sub. Monowheel. 00671_ 6A-8CB(R) suffers critical hit (Burn). 00671_ NJ-F6T(O) collects matter. 00674_ 6A-8CB(R) suffers critical hit (Burn). 00679_ Aluminum Leg destroyed. 00681_ Subatomizers dissect the Sub. Monowheel. 00684_ Ion Engine destroyed. 00684_ Critical hit (Meltdown: +260). 00691_ 6A-8CB(R) suffers critical hit (Burn). 00692_ 6A-8CB(R) heat short circuits Sub. Power Source. Map ----- +----------------------------------------------------+ | ??????? ?????? #?????####?## ####?#### #????# # | | ???????? ????? #????## ### ### ## #????# # | | ????????? ????# #??### ## # #???## # | | ??# ????# ??## #??# ## % ##?## # | | ??? ### ### #### ##### ### | | ??????# ## # # ## # ## | | ???????# " "" ## ## ### # | | ????????????# " ## # | | ????????????# # ## ### # | | ????????????# # "#### #######?# ### # # | | ????????????#?# # " #??? ##???????# ##?### | | ??????????????# ######???"" #???????## ##???# | | ??????????????# #???????? #????????###????## | | ?????????????## ##???????? ##????????????????## | | ?????#??????## ##?????#" #??????????????????### | | ?????# #### [#????#"" #????????????????????? | | ??????# &=#???# " "#????????????????????? | | ??????## &%#?## """"???????????????????? | | ???????# ## #% =&*###"" ?????????????????????? | | ???????# ??#### #=## " #????????????????????????? | | ??????## ## # "#!& #?????????????????????????? | | ??# ## % "# " ####??????????????????????? | | ??# ### "#??????????????????????? | | ??# ### #??????????????????????? | | ??# ##?????????????????????? | | ??# % @ #?????????????????????? | | ??## ### ## R #???????????????????? | | ???### ??##%?# R #???????????????????? | | ?????###????##?## ## % ??????????????????? | | ????????????????#"#####% ????????????????? | | ???????????????"""#???# ###???????????????? | | ???????????????"""#??? ##?????????????????? | | ?????????????????#"??? % ##??????????????????? | | ?????????????????????## ##???????????????????? | | ??????????????????????## #????????????????????? | | ???????????????????????# #????????????????????? | | ??????????????????????? ????????????????????? | | ??????????????????????? ????????????????????? | | ??????????????????????? # ????????????????????? | | ??????????????????????? ? ????????????????????? | | ??????????????????????? ? ?????????????????????? | | ?????????????????????????????????????????????????? | | ?????????????????????????????????????????????????? | | ?????????????????????????????????????????????????? | | ?????????????????????????????????????????????????? | | ?????????????????????????????????????????????????? | | ?????????????????????????????????????????????????? | | ?????????????????????????????????????????????????? | | ?????????????????????????????????????????????????? | | ?????????????????????????????????????????????????? | +----------------------------------------------------+ Best States ------------- Heat Dissipation 25 Energy Generation 10 Energy Capacity 250 Matter Stores 300 Matter Capacity 300 Sight Range 16 Terrain Scan Density 10 Armor Coverage 150 Evasion (%) 55 Item Schematics ----------------- None Robot Schematics ------------------ None Fabricated ------------ Nothing Alien Tech Used ----------------- None Achievements -------------- None Challenges ------------ None Game ------ Seed WaveMassKatana Manual? 0 Play Time 00:04:36 Cumulative 115.1 hours Start 2025.03.09 @ 23:43:20 End 2025.03.09 @ 23:46:18 Sessions 1 Manual Loads 0 Difficulty Rogue Special Mode None Game No. 169 Rogue 152 Adventurer 15 Explorer 2 Win Type - Total 1 Types 1/0/0/0/0/0/0/0/0 Lore% 21 Gallery% 56 Achievement% 44 Wizard Run 0 Options --------- Layout 0 ASCII 0 Keyboard 0 Movement Arrows Keybinds 0 Fullscreen 1 Font 36/Smallcaps Map View 76x50 Zoom Use 0% Tactical HUD 1 Map Filters NONE Filters NONE Steam 1 RUN: 8f8f873d-7b81-4414-a505-bab99287120e